fUSD/lending_fUSD_20240420
["ID","MTS","AMOUNT","RATE_DAILY","PERIOD"]
[323039012,1713611445027,-500.0,0.00015068,2]
[323039013,1713611445036,-500.0,0.00015068,2]
[323039014,1713611445047,-1228.09,0.00015068,2]
[323039015,1713611445057,-2766.69,0.00015068,2]
[323039016,1713611445067,-500.0,0.00015068,2]
[323039017,1713611445078,-537.9,0.00015068,2]
[323039018,1713611445087,-500.0,0.00015068,2]
[323039019,1713611445097,-500.0,0.00015068,2]
[323039020,1713611445106,-500.0,0.00015068,2]
[323039021,1713611445116,-1435.56,0.00015068,2]
[323039022,1713611445126,-537.22,0.00015068,2]
[323039023,1713611445136,-500.0,0.00015068,2]
[323039024,1713611445146,-500.0,0.00015068,2]
[323039025,1713611445156,-500.0,0.00015068,2]
[323039026,1713611445165,-500.0,0.00015068,2]
[323039027,1713611445174,-1835.58,0.00015068,2]
[323039028,1713611445184,-500.0,0.00015068,2]
[323039029,1713611445194,-500.0,0.00015068,2]
[323039030,1713611445203,-1038.04,0.00015068,2]
[323039031,1713611445213,-1367.13,0.00015068,2]
[323039032,1713611445222,-500.0,0.00015068,2]
[323039033,1713611445232,-805.23,0.00015068,2]
[323039034,1713611445241,-551.36,0.00015068,2]
[323039035,1713611445253,-500.0,0.00015068,2]
[323039036,1713611445264,-500.0,0.00015068,2]
[323039037,1713611445273,-500.0,0.00015068,2]
[323039038,1713611445283,-640.83,0.00015068,2]
[323039039,1713611445292,-500.0,0.00015068,2]
[323039040,1713611445301,-500.0,0.00015068,2]
[323039041,1713611445311,-1065.12,0.00015068,2]
[323039042,1713611445320,-500.0,0.00015068,2]
[323039043,1713611445333,-500.0,0.00015068,2]
[323039044,1713611445342,-523.47071016,0.00015068,2]
[323039045,1713611445353,-500.0,0.00015068,2]
[323039046,1713611445363,-500.0,0.00015068,2]
[323039047,1713611445373,-500.0,0.00015068,2]
[323039048,1713611445383,-674.7,0.00015068,2]
[323039049,1713611445394,-500.0,0.00015068,2]
[323039050,1713611445404,-780.32,0.00015068,2]
[323039051,1713611445413,-1788.84,0.00015068,2]
[323039052,1713611445424,-2265.42,0.00015068,2]
[323039054,1713611445433,-500.0,0.00015068,2]
[323039056,1713611445443,-545.89,0.00015068,2]
[323039058,1713611445453,-500.0,0.00015068,2]
[323039060,1713611445462,-1363.18,0.00015068,2]
[323039061,1713611445472,-500.0,0.00015068,2]
[323039063,1713611445482,-500.0,0.00015068,2]
[323039065,1713611445491,-500.0,0.00015068,2]
[323039067,1713611445502,-500.0,0.00015068,2]
[323039069,1713611445512,-1429.82,0.00015068,2]
[323039071,1713611445521,-1522.89,0.00015068,2]
[323039073,1713611445531,-500.0,0.00015068,2]
[323039075,1713611445541,-500.0,0.00015068,2]
[323039077,1713611445551,-822.42,0.00015068,2]
[323039079,1713611445560,-500.0,0.00015068,2]
[323039081,1713611445570,-500.0,0.00015068,2]
[323039083,1713611445580,-500.0,0.00015068,2]
[323039085,1713611445590,-500.0,0.00015068,2]
[323039087,1713611445599,-500.0,0.00015068,2]
[323039089,1713611445609,-500.0,0.00015068,2]
[323039090,1713611445619,-672.7,0.00015068,2]
[323039091,1713611445628,-500.0,0.00015068,2]
[323039092,1713611445638,-500.0,0.00015068,2]
[323039093,1713611445648,-500.0,0.00015068,2]
[323039095,1713611445658,-500.0,0.00015068,2]
[323039097,1713611445668,-1665.19,0.00015068,2]
[323039099,1713611445678,-339.76484344,0.00015068,2]
[323039101,1713611445688,-500.0,0.00015068,2]
[323039103,1713611445698,-500.0,0.00015068,2]
[323039105,1713611445708,-500.0,0.00015068,2]
[323039107,1713611445717,-500.0,0.00015068,2]
[323039109,1713611445727,-500.0,0.00015068,2]
[323039110,1713611445737,-500.0,0.00015068,2]
[323039112,1713611445746,-500.0,0.00015068,2]
[323039114,1713611445755,-500.0,0.00015068,2]
[323039116,1713611445764,-500.0,0.00015068,2]
[323039118,1713611445774,-500.0,0.00015068,2]
[323039120,1713611445783,-1616.68,0.00015068,2]
[323039123,1713611445793,-500.0,0.00015068,2]
[323039124,1713611445802,-500.0,0.00015068,2]
[323039126,1713611445812,-500.0,0.00015068,2]
[323039128,1713611445822,-500.0,0.00015068,2]
[323039130,1713611445831,-500.0,0.00015068,2]
[323039132,1713611445841,-2039.27,0.00015068,2]
[323039133,1713611445850,-678.8,0.00015068,2]
[323039134,1713611445859,-500.0,0.00015068,2]
[323039135,1713611445869,-500.0,0.00015068,2]
[323039136,1713611445881,-500.0,0.00015068,2]
[323039137,1713611445892,-500.0,0.00015068,2]
[323039138,1713611445902,-500.0,0.00015068,2]
[323039139,1713611445911,-500.0,0.00015068,2]
[323039140,1713611445921,-500.0,0.00015068,2]
[323039141,1713611445930,-500.0,0.00015068,2]
[323039142,1713611445939,-500.0,0.00015068,2]
[323039143,1713611445949,-1653.62,0.00015068,2]
[323039144,1713611445958,-500.0,0.00015068,2]
[323039145,1713611445967,-500.0,0.00015068,2]
[323039146,1713611445977,-500.0,0.00015068,2]
[323039147,1713611445987,-500.0,0.00015068,2]
[323039148,1713611445996,-500.0,0.00015068,2]
[323039149,1713611446006,-500.0,0.00015068,2]
[323039150,1713611446016,-500.0,0.00015068,2]
[323039151,1713611446025,-1134.35,0.00015068,2]
[323039152,1713611446034,-500.0,0.00015068,2]
[323039153,1713611446044,-500.0,0.00015068,2]
[323039154,1713611446053,-500.0,0.00015068,2]
[323039155,1713611446063,-500.0,0.00015068,2]
[323039156,1713611446072,-500.0,0.00015068,2]
[323039157,1713611446082,-500.0,0.00015068,2]
[323039158,1713611446091,-500.0,0.00015068,2]
[323039159,1713611446101,-500.0,0.00015068,2]
[323039160,1713611446110,-500.0,0.00015068,2]
[323039161,1713611446119,-1014.28,0.00015068,2]
[323039162,1713611446129,-500.0,0.00015068,2]
[323039163,1713611446144,-362.391714,0.00015068,2]
[323039164,1713611446154,-2608.96,0.00015068,2]
[323039165,1713611446163,-500.0,0.00015068,2]
[323039166,1713611446172,-500.0,0.00015068,2]
[323039167,1713611446182,-500.0,0.00015068,2]
[323039168,1713611446289,-500.0,0.00015068,2]
[323039169,1713611446299,-573.98822222,0.00015068,2]
[323039170,1713611446308,-889.44,0.00015068,2]
[323039171,1713611446317,-1280.01,0.00015068,2]
[323039172,1713611446325,-500.0,0.00015068,2]
[323039173,1713611446336,-620.78,0.00015068,2]
[323039174,1713611446345,-500.0,0.00015068,2]
[323039175,1713611446354,-500.0,0.00015068,2]
[323039176,1713611446363,-646.39,0.00015068,2]
[323039177,1713611446372,-1449.62,0.00015068,2]
[323039178,1713611446382,-9687.36,0.00015068,2]
[323039179,1713611446394,-500.0,0.00015068,2]
[323039180,1713611446403,-745.84,0.00015068,2]
[323039181,1713611446413,-500.0,0.00015068,2]
[323039182,1713611446423,-500.0,0.00015068,2]
[323039183,1713611446432,-500.0,0.00015068,2]
[323039184,1713611446441,-3748.05,0.00015068,2]
[323039185,1713611446451,-656.03,0.00015068,2]
[323039186,1713611446460,-1022.9,0.00015068,2]
[323039187,1713611446470,-1359.38,0.00015068,2]
[323039188,1713611446479,-500.0,0.00015068,2]
[323039189,1713611446490,-497.00261394,0.00015068,2]
[323039190,1713611446500,-500.0,0.00015068,2]
[323039191,1713611446509,-500.0,0.00015068,2]
[323039192,1713611446518,-2102.62,0.00015068,2]
[323039193,1713611446528,-523.4,0.00015068,2]
[323039194,1713611446537,-500.0,0.00015068,2]
[323039195,1713611446546,-1544.99,0.00015068,2]
[323039196,1713611446556,-500.0,0.00015068,2]
[323039197,1713611446566,-500.0,0.00015068,2]
[323039198,1713611446575,-500.0,0.00015068,2]
[323039199,1713611446585,-1118.9,0.00015068,2]
[323039200,1713611446594,-500.0,0.00015068,2]
[323039201,1713611446603,-500.0,0.00015068,2]
[323039202,1713611446612,-621.49,0.00015068,2]
[323039203,1713611446621,-500.0,0.00015068,2]
[323039204,1713611446631,-500.0,0.00015068,2]
[323039205,1713611446643,-5131.73,0.00015068,2]
[323039207,1713611446652,-4456.85,0.00015068,2]
[323039209,1713611446660,-500.0,0.00015068,2]
[323039211,1713611446670,-611.35,0.00015068,2]
[323039213,1713611446680,-500.0,0.00015068,2]
[323039215,1713611446689,-27081.06,0.00015068,2]
[323039217,1713611446698,-886.69,0.00015068,2]
[323039219,1713611446707,-3077.56,0.00015068,2]
[323039221,1713611446716,-500.0,0.00015068,2]
[323039223,1713611446726,-500.0,0.00015068,2]
[323039225,1713611446736,-3128.44,0.00015068,2]
[323039227,1713611446746,-500.0,0.00015068,2]
[323039229,1713611446755,-2738.9,0.00015068,2]
[323039231,1713611446764,-1189.37,0.00015068,2]
[323039233,1713611446773,-500.0,0.00015068,2]
[323039235,1713611446781,-2283.46,0.00015068,2]
[323039237,1713611446790,-1656.25,0.00015068,2]
[323039239,1713611446800,-500.0,0.00015068,2]
[323039241,1713611446809,-664.94,0.00015068,2]
[323039243,1713611446818,-500.0,0.00015068,2]
[323039245,1713611446827,-500.0,0.00015068,2]
[323039247,1713611446836,-500.0,0.00015068,2]
[323039249,1713611446845,-500.0,0.00015068,2]
[323039251,1713611446854,-500.0,0.00015068,2]
[323039253,1713611446863,-1474.84,0.00015068,2]
[323039255,1713611446872,-1743.5,0.00015068,2]
[323039257,1713611446881,-1235.94,0.00015068,2]
[323039259,1713611446891,-12684.05,0.00015068,2]
[323039261,1713611446900,-501.99675827,0.00015068,2]
[323039263,1713611446911,-500.0,0.00015068,2]
[323039265,1713611446921,-3144.69,0.00015068,2]
[323039267,1713611446929,-587.21,0.00015068,2]
[323039269,1713611446938,-500.0,0.00015068,2]
[323039271,1713611446947,-500.0,0.00015068,2]
[323039273,1713611446957,-500.0,0.00015068,2]
[323039275,1713611446966,-1178.55,0.00015068,2]
[323039277,1713611446975,-2700.56,0.00015068,2]
[323039279,1713611446984,-500.0,0.00015068,2]
[323039281,1713611446993,-500.0,0.00015068,2]
[323039283,1713611447002,-500.0,0.00015068,2]
[323039285,1713611447011,-500.0,0.00015068,2]
[323039287,1713611447020,-1443.78,0.00015068,2]
[323039289,1713611447030,-4052.79,0.00015068,2]
[323039291,1713611447038,-5741.21,0.00015068,2]
[323039293,1713611447047,-500.0,0.00015068,2]
[323039295,1713611447059,-500.0,0.00015068,2]
[323039297,1713611447068,-1575.77,0.00015068,2]
[323039299,1713611447077,-1011.59,0.00015068,2]
[323039301,1713611447086,-592.36,0.00015068,2]
[323039303,1713611447095,-500.0,0.00015068,2]
[323039305,1713611447104,-500.0,0.00015068,2]
[323039307,1713611447113,-500.0,0.00015068,2]
[323039309,1713611447122,-2908.87,0.00015068,2]
[323039311,1713611447131,-196.10641067,0.00015068,2]
[323039313,1713611447140,-719.71,0.00015068,2]
[323039315,1713611447149,-500.0,0.00015068,2]
[323039317,1713611447159,-500.0,0.00015068,2]
[323039318,1713611447169,-500.0,0.00015068,2]
[323039321,1713611447178,-500.0,0.00015068,2]
[323039323,1713611447188,-500.0,0.00015068,2]
[323039325,1713611447197,-500.0,0.00015068,2]
[323039327,1713611447207,-500.0,0.00015068,2]
[323039329,1713611447216,-500.0,0.00015068,2]
[323039331,1713611447225,-500.0,0.00015068,2]
[323039332,1713611447235,-500.0,0.00015068,2]
[323039334,1713611447245,-500.0,0.00015068,2]
[323039336,1713611447257,-500.0,0.00015068,2]
[323039339,1713611447268,-2445.79,0.00015068,2]
[323039340,1713611447277,-861.43,0.00015068,2]
[323039342,1713611447286,-500.0,0.00015068,2]
[323039344,1713611447295,-1065.36,0.00015068,2]
[323039346,1713611447305,-1016.81,0.00015068,2]
[323039348,1713611447315,-500.0,0.00015068,2]
[323039351,1713611447325,-500.0,0.00015068,2]
[323039353,1713611447336,-21321.96,0.00015068,2]
[323039355,1713611447346,-500.0,0.00015068,2]
[323039357,1713611447355,-500.0,0.00015068,2]
[323039359,1713611447364,-500.0,0.00015068,2]
[323039361,1713611447373,-2157.32,0.00015068,2]
[323039363,1713611447382,-500.0,0.00015068,2]
[323039364,1713611447393,-500.0,0.00015068,2]
[323039367,1713611447402,-18305.92,0.00015068,2]
[323039369,1713611447411,-532.63,0.00015068,2]
[323039370,1713611447421,-1390.82,0.00015068,2]
[323039372,1713611447430,-500.0,0.00015068,2]
[323039375,1713611447439,-5154.48,0.00015068,2]
[323039377,1713611447448,-766.49,0.00015068,2]
[323039379,1713611447457,-526.19,0.00015068,2]
[323039380,1713611447466,-500.0,0.00015068,2]
[323039383,1713611447475,-500.0,0.00015068,2]
[323039385,1713611447484,-1235.99,0.00015068,2]
[323039386,1713611447493,-500.0,0.00015068,2]
[323039388,1713611447502,-500.0,0.00015068,2]
[323039390,1713611447512,-500.0,0.00015068,2]
[323039392,1713611447521,-739.09,0.00015068,2]
[323039394,1713611447530,-549.41,0.00015068,2]
[323039397,1713611447539,-500.0,0.00015068,2]
[323039398,1713611447548,-559.9,0.00015068,2]
[323039401,1713611447558,-1963.38,0.00015068,2]
[323039402,1713611447567,-1597.07,0.00015068,2]
[323039404,1713611447575,-500.0,0.00015068,2]
[323039406,1713611447585,-500.0,0.00015068,2]
[323039408,1713611447594,-500.0,0.00015068,2]
[323039410,1713611447603,-500.0,0.00015068,2]
[323039412,1713611447612,-500.0,0.00015068,2]
[323039414,1713611447622,-500.0,0.00015068,2]
[323039417,1713611447631,-500.0,0.00015068,2]
[323039418,1713611447641,-1053.91,0.00015068,2]
[323039420,1713611447650,-1097.15,0.00015068,2]
[323039422,1713611447659,-542.94,0.00015068,2]
[323039424,1713611447670,-881.67,0.00015068,2]
[323039427,1713611447680,-500.0,0.00015068,2]
[323039429,1713611447689,-500.0,0.00015068,2]
[323039431,1713611447698,-500.0,0.00015068,2]
[323039432,1713611447707,-934.34,0.00015068,2]
[323039434,1713611447716,-2407.92,0.00015068,2]
[323039436,1713611447725,-500.0,0.00015068,2]
[323039438,1713611447734,-700.95,0.00015068,2]
[323039440,1713611447743,-500.0,0.00015068,2]
[323039442,1713611447752,-500.0,0.00015068,2]
[323039444,1713611447761,-8483.75,0.00015068,2]
[323039446,1713611447770,-500.0,0.00015068,2]
[323039447,1713611447779,-985.74,0.00015068,2]
[323039448,1713611447788,-953.62,0.00015068,2]
[323039449,1713611447797,-500.0,0.00015068,2]
[323039450,1713611447806,-500.0,0.00015068,2]
[323039451,1713611447815,-500.0,0.00015068,2]
[323039452,1713611447824,-1263.4,0.00015068,2]
[323039453,1713611447834,-2218.59,0.00015068,2]
[323039454,1713611447843,-1027.93,0.00015068,2]
[323039455,1713611447852,-2083.64,0.00015068,2]
[323039456,1713611447861,-500.0,0.00015068,2]
[323039457,1713611447870,-500.0,0.00015068,2]
[323039458,1713611447879,-500.0,0.00015068,2]
[323039459,1713611447888,-500.0,0.00015068,2]
[323039460,1713611447897,-500.0,0.00015068,2]
[323039461,1713611447907,-2217.34,0.00015068,2]
[323039462,1713611447917,-630.06,0.00015068,2]
[323039463,1713611447926,-978.35,0.00015068,2]
[323039464,1713611447935,-500.0,0.00015068,2]
[323039465,1713611447946,-674.54,0.00015068,2]
[323039466,1713611447956,-500.0,0.00015068,2]
[323039467,1713611447965,-500.0,0.00015068,2]
[323039468,1713611447973,-644.84,0.00015068,2]
[323039469,1713611447983,-840.59,0.00015068,2]
[323039470,1713611447993,-3097.56,0.00015068,2]
[323039471,1713611448003,-2519.39,0.00015068,2]
[323039472,1713611448012,-500.0,0.00015068,2]
[323039473,1713611448021,-901.54,0.00015068,2]
[323039474,1713611448030,-500.0,0.00015068,2]
[323039475,1713611448039,-500.0,0.00015068,2]
[323039476,1713611448048,-500.0,0.00015068,2]
[323039477,1713611448057,-725.09,0.00015068,2]
[323039478,1713611448067,-2260.58,0.00015068,2]
[323039479,1713611448075,-500.0,0.00015068,2]
[323039480,1713611448084,-500.0,0.00015068,2]
[323039481,1713611448095,-833.06,0.00015068,2]
[323039482,1713611448106,-1216.06,0.00015068,2]
[323039483,1713611448115,-500.0,0.00015068,2]
[323039484,1713611448125,-500.0,0.00015068,2]
[323039485,1713611448135,-905.84,0.00015068,2]
[323039486,1713611448147,-500.0,0.00015068,2]
[323039487,1713611448157,-500.0,0.00015068,2]
[323039488,1713611448166,-500.0,0.00015068,2]
[323039489,1713611448175,-500.0,0.00015068,2]
[323039490,1713611448184,-500.0,0.00015068,2]
[323039491,1713611448193,-643.51534061,0.00015068,2]
[323039492,1713611448202,-500.0,0.00015068,2]
[323039493,1713611448212,-2194.56,0.00015068,2]
[323039494,1713611448223,-500.0,0.00015068,2]
[323039495,1713611448232,-500.0,0.00015068,2]
[323039496,1713611448242,-500.0,0.00015068,2]
[323039497,1713611448251,-866.3,0.00015068,2]
[323039498,1713611448264,-500.0,0.00015068,2]
[323039499,1713611448273,-500.0,0.00015068,2]
[323039500,1713611448281,-500.0,0.00015068,2]
[323039501,1713611448290,-682.78,0.00015068,2]
[323039502,1713611448299,-2471.76,0.00015068,2]
[323039503,1713611448309,-1700.77,0.00015068,2]
[323039504,1713611448318,-500.0,0.00015068,2]
[323039505,1713611448327,-692.57,0.00015068,2]
[323039506,1713611448337,-531.46841019,0.00015068,2]
[323039507,1713611448346,-500.0,0.00015068,2]
[323039508,1713611448357,-1191.14,0.00015068,2]
[323039509,1713611448367,-500.0,0.00015068,2]
[323039510,1713611448376,-1229.85,0.00015068,2]
[323039511,1713611448385,-500.0,0.00015068,2]
[323039512,1713611448396,-1416.98,0.00015068,2]
[323039513,1713611448405,-500.0,0.00015068,2]
[323039514,1713611448414,-500.0,0.00015068,2]
[323039515,1713611448423,-500.0,0.00015068,2]
[323039516,1713611448432,-1466.87,0.00015068,2]
[323039517,1713611448441,-1522.29,0.00015068,2]
[323039518,1713611448452,-500.0,0.00015068,2]
[323039519,1713611448462,-1426.61,0.00015068,2]
[323039520,1713611448471,-2462.06,0.00015068,2]
[323039521,1713611448480,-500.0,0.00015068,2]
[323039522,1713611448490,-500.0,0.00015068,2]
[323039523,1713611448499,-500.0,0.00015068,2]
[323039524,1713611448508,-1140.07,0.00015068,2]
[323039525,1713611448517,-648.24203904,0.00015068,2]
[323039526,1713611448526,-4407.92,0.00015068,2]
[323039527,1713611448535,-500.0,0.00015068,2]
[323039528,1713611448544,-500.0,0.00015068,2]
[323039529,1713611448554,-634.03,0.00015068,2]
[323039530,1713611448563,-3555.5,0.00015068,2]
[323039531,1713611448572,-500.0,0.00015068,2]
[323039532,1713611448582,-500.0,0.00015068,2]
[323039533,1713611448590,-1921.97,0.00015068,2]
[323039534,1713611448600,-500.0,0.00015068,2]
[323039535,1713611448608,-777.26,0.00015068,2]
[323039536,1713611448617,-5802.02,0.00015068,2]
[323039537,1713611448626,-500.0,0.00015068,2]
[323039538,1713611448636,-2886.77,0.00015068,2]
[323039539,1713611448646,-500.0,0.00015068,2]
[323039540,1713611448655,-500.0,0.00015068,2]
[323039541,1713611448664,-1061.12,0.00015068,2]
[323039542,1713611448673,-505.0,0.00015068,2]
[323039543,1713611448682,-2253.72,0.00015068,2]
[323039544,1713611448691,-801.51,0.00015068,2]
[323039545,1713611448700,-500.0,0.00015068,2]
[323039546,1713611448710,-500.0,0.00015068,2]
[323039547,1713611448719,-2939.41,0.00015068,2]
[323039548,1713611448730,-500.0,0.00015068,2]
[323039549,1713611448740,-500.0,0.00015068,2]
[323039550,1713611448750,-1257.67,0.00015068,2]
[323039551,1713611448760,-2720.21,0.00015068,2]
[323039552,1713611448770,-716.94,0.00015068,2]
[323039553,1713611448779,-614.44,0.00015068,2]
[323039554,1713611448788,-500.0,0.00015068,2]
[323039555,1713611448797,-500.0,0.00015068,2]
[323039556,1713611448807,-2718.38,0.00015068,2]
[323039557,1713611448817,-500.0,0.00015068,2]
[323039558,1713611448827,-500.0,0.00015068,2]
[323039559,1713611448836,-166.42351258,0.00015068,2]
[323039560,1713611448846,-1726.85,0.00015068,2]
[323039561,1713611448854,-1176.84,0.00015068,2]
[323039562,1713611448863,-578.82,0.00015068,2]
[323039563,1713611448873,-1240.6,0.00015068,2]
[323039564,1713611448881,-2118.74,0.00015068,2]
[323039565,1713611448890,-934.43,0.00015068,2]
[323039566,1713611448900,-567.94,0.00015068,2]
[323039567,1713611448909,-500.0,0.00015068,2]
[323039568,1713611448918,-500.0,0.00015068,2]
[323039569,1713611448927,-911.0,0.00015068,2]
[323039570,1713611448937,-3969.77,0.00015068,2]
[323039571,1713611448946,-500.0,0.00015068,2]
[323039572,1713611448954,-500.0,0.00015068,2]
[323039573,1713611448963,-500.0,0.00015068,2]
[323039574,1713611448972,-444.37473599,0.00015068,2]
[323039575,1713611448981,-647.49,0.00015068,2]
[323039576,1713611448990,-982.86,0.00015068,2]
[323039577,1713611448999,-2826.98,0.00015068,2]
[323039578,1713611449009,-765.79,0.00015068,2]
[323039579,1713611449018,-495.61529261,0.00015068,2]
[323039580,1713611449027,-1272.51,0.00015068,2]
[323039581,1713611449036,-1271.09,0.00015068,2]
[323039582,1713611449045,-500.0,0.00015068,2]
[323039583,1713611449054,-2434.77,0.00015068,2]
[323039584,1713611449063,-500.0,0.00015068,2]
[323039585,1713611449071,-2514.95,0.00015068,2]
[323039586,1713611449080,-500.0,0.00015068,2]
[323039587,1713611449089,-500.0,0.00015068,2]
[323039588,1713611449098,-1361.07,0.00015068,2]
[323039589,1713611449107,-577.77428744,0.00015068,2]
[323039590,1713611449116,-790.46,0.00015068,2]
[323039591,1713611449125,-627.33,0.00015068,2]
[323039592,1713611449134,-1116.68,0.00015068,2]
[323039593,1713611449143,-1011.26,0.00015068,2]
[323039594,1713611449151,-500.0,0.00015068,2]
[323039595,1713611449160,-815.46,0.00015068,2]
[323039596,1713611449169,-500.0,0.00015068,2]
[323039597,1713611449178,-727.05,0.00015068,2]
[323039598,1713611449188,-500.0,0.00015068,2]
[323039599,1713611449197,-500.0,0.00015068,2]
[323039600,1713611449207,-1792.71,0.00015068,2]
[323039601,1713611449216,-970.81,0.00015068,2]
[323039602,1713611449225,-500.0,0.00015068,2]
[323039603,1713611449234,-500.0,0.00015068,2]
[323039604,1713611449243,-500.0,0.00015068,2]
[323039605,1713611449253,-520.64433811,0.00015068,2]
[323039606,1713611449265,-2683.78,0.00015068,2]
[323039607,1713611449274,-500.0,0.00015068,2]
[323039608,1713611449283,-500.0,0.00015068,2]
[323039609,1713611449292,-500.0,0.00015068,2]
[323039610,1713611449303,-946.09,0.00015068,2]
[323039611,1713611449311,-5979.68,0.00015068,2]
[323039612,1713611449320,-2237.02,0.00015068,2]
[323039613,1713611449329,-13980.56,0.00015068,2]
[323039614,1713611449339,-1403.86,0.00015068,2]
[323039615,1713611449349,-1278.7,0.00015068,2]
[323039616,1713611449358,-500.0,0.00015068,2]
[323039617,1713611449367,-500.0,0.00015068,2]
[323039618,1713611449377,-856.22,0.00015068,2]
[323039619,1713611449386,-500.0,0.00015068,2]
[323039620,1713611449396,-911.36,0.00015068,2]
[323039621,1713611449405,-943.55,0.00015068,2]
[323039622,1713611449415,-500.0,0.00015068,2]
[323039623,1713611449424,-500.0,0.00015068,2]
[323039624,1713611449433,-829.22,0.00015068,2]
[323039625,1713611449442,-500.0,0.00015068,2]
[323039626,1713611449451,-500.0,0.00015068,2]
[323039627,1713611449460,-500.0,0.00015068,2]
[323039628,1713611449469,-500.0,0.00015068,2]
[323039629,1713611449479,-544.68,0.00015068,2]
[323039630,1713611449488,-500.0,0.00015068,2]
[323039631,1713611449497,-5162.7,0.00015068,2]
[323039632,1713611449507,-22452.43,0.00015068,2]
[323039633,1713611449516,-706.33,0.00015068,2]
[323039634,1713611449526,-500.0,0.00015068,2]
[323039635,1713611449535,-500.0,0.00015068,2]
[323039636,1713611449544,-725.12,0.00015068,2]
[323039637,1713611449553,-500.0,0.00015068,2]
[323039638,1713611449562,-4216.0,0.00015068,2]
[323039639,1713611449571,-500.0,0.00015068,2]
[323039640,1713611449581,-500.0,0.00015068,2]
[323039641,1713611449590,-500.0,0.00015068,2]
[323039642,1713611449599,-1606.28,0.00015068,2]
[323039643,1713611449608,-1930.65,0.00015068,2]
[323039644,1713611449618,-604.22,0.00015068,2]
[323039645,1713611449627,-500.0,0.00015068,2]
[323039646,1713611449636,-500.0,0.00015068,2]
[323039647,1713611449646,-3445.35,0.00015068,2]
[323039648,1713611449655,-500.0,0.00015068,2]
[323039649,1713611449665,-500.0,0.00015068,2]
[323039650,1713611449674,-500.0,0.00015068,2]
[323039651,1713611449684,-500.0,0.00015068,2]
[323039652,1713611449693,-500.0,0.00015068,2]
[323039653,1713611449702,-760.51,0.00015068,2]
[323039654,1713611449711,-500.0,0.00015068,2]
[323039655,1713611449720,-500.0,0.00015068,2]
[323039656,1713611449730,-605.83,0.00015068,2]
[323039657,1713611449739,-500.0,0.00015068,2]
[323039658,1713611449749,-1895.04,0.00015068,2]
[323039659,1713611449758,-783.75,0.00015068,2]
[323039660,1713611449766,-500.0,0.00015068,2]
[323039661,1713611449775,-3002.89,0.00015068,2]
[323039662,1713611449784,-500.0,0.00015068,2]
[323039663,1713611449794,-500.0,0.00015068,2]
[323039664,1713611449804,-1971.73,0.00015068,2]
[323039665,1713611449813,-500.0,0.00015068,2]
[323039666,1713611449822,-4697.73,0.00015068,2]
[323039667,1713611449832,-500.0,0.00015068,2]
[323039668,1713611449842,-519.88353693,0.00015068,2]